bitfinex-derivatives/quotes_BTCF0:USTF0_20250709
["timestamp","ask_amount","ask_price","bid_price","bid_amount"]
[1752077494661,0.68602598,109190.0,109180.0,1.01571255]
[1752077494859,0.68602598,109190.0,109180.0,1.33283668]
[1752077495161,0.68302598,109190.0,109180.0,1.33283668]
[1752077495357,0.68402598,109190.0,109180.0,1.33283668]
[1752077498864,0.05618598,109190.0,109180.0,2.57405668]
[1752077499064,0.02051933,109190.0,109180.0,2.57405668]
[1752077499462,0.002,109200.0,109190.0,0.183142]
[1752077499771,0.66573192,109200.0,109190.0,1.29103613]
[1752077500666,0.67273192,109200.0,109190.0,1.29103613]
[1752077501657,0.67269192,109200.0,109190.0,1.29103613]
[1752077502269,0.04493192,109200.0,109190.0,1.29103613]
[1752077502469,0.67269192,109200.0,109190.0,1.29952613]
[1752077503169,0.63676,109200.0,109190.0,1.29952613]
[1752077504572,0.65237,109200.0,109190.0,1.29952613]
[1752077504873,0.63676,109200.0,109190.0,1.29952613]
[1752077505866,0.65237,109200.0,109190.0,1.29952613]
[1752077506169,0.68307,109200.0,109190.0,1.29952613]
[1752077510177,0.66746,109200.0,109190.0,1.29952613]
[1752077510676,0.0397,109200.0,109190.0,1.29952613]
[1752077510877,0.63672,109200.0,109190.0,1.29952613]
[1752077511777,0.002,109210.0,109200.0,0.1831252]
[1752077512080,0.68952,109220.0,109210.0,0.1831085]
[1752077512278,0.07741,109220.0,109210.0,0.90071107]
[1752077512578,0.44522425,109240.0,109220.0,0.1830917]
[1752077512782,0.2307682,109240.0,109230.0,0.54162913]
[1752077512965,0.8584482,109240.0,109230.0,0.83666913]
[1752077513170,0.67539,109240.0,109230.0,0.83666913]
[1752077513674,0.8584482,109240.0,109230.0,0.83666913]
[1752077513876,0.899206,109240.0,109230.0,0.519545]
[1752077514174,1.260006,109240.0,109230.0,0.519545]
[1752077514377,0.632326,109240.0,109230.0,0.519545]
[1752077514577,1.264006,109240.0,109230.0,0.519545]
[1752077514777,1.287276,109240.0,109230.0,0.519545]
[1752077515278,1.60440013,109240.0,109230.0,0.519545]
[1752077515478,1.1072178,109240.0,109230.0,0.519545]
[1752077515880,1.1072178,109240.0,109230.0,0.53902525]
[1752077516275,0.662596,109240.0,109230.0,0.53902525]
[1752077516583,1.290236,109240.0,109230.0,0.53902525]
[1752077519583,1.60736013,109240.0,109230.0,0.54902525]
[1752077521290,1.60736013,109240.0,109230.0,0.34948025]
[1752077521487,1.60736013,109240.0,109230.0,0.53255555]
[1752077523987,1.01523799,109240.0,109230.0,0.53255555]
[1752077524188,1.64279799,109240.0,109230.0,0.53255555]
[1752077525086,2.00359799,109240.0,109230.0,0.01948025]
[1752077525384,2.08798799,109240.0,109230.0,0.01948025]
[1752077525793,2.37009597,109240.0,109230.0,0.01948025]
[1752077526291,0.1830753,109230.0,109220.0,0.3203951]
[1752077526592,0.97372729,109230.0,109220.0,0.3203951]
[1752077527994,0.97572729,109230.0,109220.0,0.3203951]
[1752077528791,0.10211786,109230.0,109220.0,1.03604923]
[1752077528992,0.69827786,109230.0,109220.0,1.06734923]
[1752077529193,0.71440786,109230.0,109220.0,1.09894923]
[1752077530293,0.89748346,109230.0,109220.0,1.09894923]
[1752077531397,0.89748346,109230.0,109220.0,0.7275451]
[1752077531587,0.92838346,109230.0,109220.0,0.7275451]
[1752077533596,1.10610786,109230.0,109220.0,0.7275451]
[1752077533791,0.74530786,109230.0,109220.0,1.06734923]
[1752077534090,0.92838346,109230.0,109220.0,1.04466923]
[1752077535896,0.92838346,109230.0,109220.0,0.7175451]
[1752077536298,1.26916759,109230.0,109220.0,0.3203951]
[1752077536495,1.26916759,109230.0,109220.0,0.3362451]
[1752077536690,1.26916759,109230.0,109220.0,0.6562451]
[1752077537200,1.24550759,109230.0,109220.0,0.3362451]
[1752077539201,1.60630759,109230.0,109220.0,0.3362451]
[1752077539501,1.24550759,109230.0,109220.0,0.6762451]
[1752077539697,1.24550759,109230.0,109220.0,0.7087451]
[1752077539698,1.28918346,109230.0,109220.0,0.7087451]
[1752077540001,1.25828346,109230.0,109220.0,1.04854923]
[1752077541800,1.25828346,109230.0,109220.0,1.07914923]
[1752077543194,1.25828346,109230.0,109220.0,0.7620251]
[1752077543396,1.25828346,109230.0,109220.0,1.07914923]
[1752077544101,1.25828346,109230.0,109220.0,0.7620251]
[1752077544599,1.25828346,109230.0,109220.0,1.07914923]
[1752077544903,1.04508786,109230.0,109220.0,1.07914923]
[1752077546000,1.04508786,109230.0,109220.0,1.08841467]
[1752077546206,0.68428786,109230.0,109220.0,1.44921467]
[1752077546699,0.05664786,109230.0,109220.0,1.44921467]
[1752077546905,0.04051786,109230.0,109220.0,1.7663388]
[1752077547092,0.005,109230.0,109220.0,1.7663388]
[1752077547298,0.63024,109240.0,109230.0,0.1830757]
[1752077547500,0.66575484,109240.0,109230.0,1.28252983]
[1752077547800,0.66571467,109240.0,109230.0,1.59965396]
[1752077548702,0.01939601,109250.0,109240.0,0.1830589]
[1752077549000,0.64799601,109250.0,109240.0,1.29141303]
[1752077550399,0.65099601,109250.0,109240.0,1.29141303]
[1752077551100,0.64799601,109250.0,109240.0,1.29141303]
[1752077551307,0.64927601,109250.0,109240.0,1.29141303]
[1752077552202,0.02039601,109250.0,109240.0,1.29141303]
[1752077552598,0.64915601,109250.0,109240.0,1.29141303]
[1752077553999,0.0629,109270.0,109260.0,0.1830259]
[1752077554210,0.70771,109270.0,109260.0,1.20680003]
[1752077554600,0.8907191,109270.0,109260.0,0.84600003]
[1752077555293,0.8907191,109270.0,109260.0,0.87770003]
[1752077555506,0.6917,109270.0,109260.0,1.26118003]
[1752077555702,0.0629,109270.0,109260.0,1.26118003]
[1752077556013,0.69166,109270.0,109260.0,1.26118003]
[1752077556494,0.71079,109270.0,109260.0,1.26118003]
[1752077556697,0.08203,109270.0,109260.0,1.26118003]
[1752077556908,0.71083,109270.0,109260.0,1.26118003]
[1752077557106,0.08203,109270.0,109260.0,1.26118003]
[1752077557407,0.71083,109270.0,109260.0,1.26118003]
[1752077558301,0.8938391,109270.0,109260.0,1.26118003]
[1752077558605,0.71083,109270.0,109260.0,1.26118003]
[1752077558801,0.71283,109270.0,109260.0,1.26118003]
[1752077559005,0.08403,109270.0,109260.0,1.26118003]
[1752077559200,0.05123,109270.0,109260.0,1.26118003]
[1752077559404,0.05123,109270.0,109260.0,1.29428003]
[1752077559609,0.68003,109270.0,109260.0,1.36641235]
[1752077560307,0.68003,109270.0,109260.0,1.37544557]
[1752077560699,0.05617309,109270.0,109260.0,1.37544557]
[1752077560900,0.68497309,109270.0,109260.0,1.37544557]
[1752077561106,0.68297309,109270.0,109260.0,1.36641235]
[1752077561601,0.05417309,109270.0,109260.0,1.36641235]
[1752077561800,0.68277309,109270.0,109260.0,1.36641235]
[1752077562108,0.68277309,109270.0,109260.0,1.37560405]
[1752077562407,0.68177309,109270.0,109260.0,1.37560405]
[1752077562610,0.03704309,109270.0,109260.0,1.37560405]
[1752077562807,0.66564309,109270.0,109260.0,1.37560405]
[1752077563103,0.03704309,109270.0,109260.0,1.69272818]
[1752077563308,0.66556309,109270.0,109260.0,1.69272818]
[1752077565312,0.03704309,109270.0,109260.0,1.69272818]
[1752077565507,0.03604309,109270.0,109260.0,1.69272818]
[1752077566109,0.03604309,109270.0,109260.0,1.05847992]
[1752077566309,0.03504309,109270.0,109260.0,1.69272818]
[1752077569613,0.71117552,109280.0,109270.0,0.1830092]
[1752077569809,0.76322818,109280.0,109270.0,1.22080333]
[1752077570818,0.76422818,109280.0,109270.0,1.22080333]
[1752077571520,0.76522818,109280.0,109270.0,1.22080333]
[1752077571814,0.72927552,109280.0,109270.0,1.22080333]
[1752077573014,0.13693826,109280.0,109270.0,1.22080333]
[1752077573209,0.72911552,109280.0,109270.0,0.9036792]
[1752077573421,0.76505718,109280.0,109270.0,1.22080333]
[1752077573623,0.94797008,109280.0,109270.0,0.84489333]
[1752077573816,1.09785421,109280.0,109270.0,0.02476]
[1752077574023,0.1830096,109270.0,109260.0,0.22891748]
[1752077574224,1.02917539,109270.0,109260.0,0.32042898]
[1752077575416,0.71205126,109270.0,109260.0,0.32042898]
[1752077575617,1.02917539,109270.0,109260.0,0.32042898]
[1752077577022,0.95400539,109270.0,109260.0,0.32042898]
[1752077577221,0.68388126,109270.0,109260.0,0.32042898]
[1752077577524,1.00100539,109270.0,109260.0,0.32042898]
[1752077578222,1.10100539,109270.0,109260.0,0.32042898]
[1752077578422,1.10100539,109270.0,109260.0,0.27467258]
[1752077579226,1.10100539,109270.0,109260.0,0.00013758]
[1752077579630,1.10100539,109270.0,109260.0,0.18316408]
[1752077579824,1.10100539,109270.0,109260.0,0.00013758]
[1752077581229,0.1830265,109260.0,109250.0,0.1830298]
[1752077581525,2.04424642,109260.0,109250.0,0.1830298]
[1752077582429,2.04424642,109260.0,109250.0,0.1840298]
[1752077582631,2.04424642,109260.0,109250.0,0.1860298]
[1752077583026,1.72712229,109260.0,109250.0,0.1860298]
[1752077584332,2.04424642,109260.0,109250.0,0.1860298]
[1752077585628,2.32922982,109260.0,109250.0,0.1860433]
[1752077586830,2.14617382,109260.0,109250.0,0.1860433]
[1752077587425,1.82904969,109260.0,109250.0,0.1860433]
[1752077590435,2.14617382,109260.0,109250.0,0.003]
[1752077591236,2.14617382,109260.0,109250.0,0.1860433]
[1752077591434,1.82904969,109260.0,109250.0,0.1860433]
[1752077592537,1.82904969,109260.0,109250.0,0.003]
[1752077593138,2.14617382,109260.0,109250.0,0.003]
[1752077593832,3.41217382,109260.0,109250.0,0.003]
[1752077594335,3.41217382,109260.0,109250.0,0.1860432]
[1752077595038,3.41217382,109260.0,109250.0,0.003]
[1752077595939,3.41217382,109260.0,109250.0,0.1860432]
[1752077596729,3.41177382,109260.0,109250.0,0.1860432]
[1752077597337,3.09464969,109260.0,109250.0,0.1860432]
[1752077598533,0.1830432,109250.0,109240.0,0.06093758]
[1752077598738,1.17340909,109250.0,109240.0,0.18306]
[1752077598944,1.06437167,109250.0,109240.0,0.18306]
[1752077599239,0.18306,109240.0,109230.0,0.3052994]
[1752077599439,1.54614579,109240.0,109230.0,0.3052994]
[1752077599635,1.60179579,109240.0,109230.0,0.3052994]
[1752077599838,1.28467166,109240.0,109230.0,0.3542294]
[1752077600035,0.97080868,109240.0,109230.0,0.3542294]
[1752077600229,0.65368455,109240.0,109230.0,1.07425353]
[1752077600435,1.22918166,109240.0,109230.0,1.07425353]
[1752077600635,1.22918166,109240.0,109230.0,1.07825353]
[1752077601038,0.86838166,109240.0,109230.0,1.07825353]
[1752077601237,0.86838166,109240.0,109230.0,1.08325353]
[1752077601438,0.83244,109240.0,109230.0,1.08325353]
[1752077602240,1.51036413,109240.0,109230.0,0.3632294]
[1752077602543,1.56925862,109240.0,109230.0,0.3632294]
[1752077603535,1.54630862,109240.0,109230.0,0.3632294]
[1752077604744,1.56925862,109240.0,109230.0,0.3632294]
[1752077605043,1.6437539,109240.0,109230.0,0.3632294]
[1752077605846,1.65311025,109240.0,109230.0,0.3632294]
[1752077606337,1.75311025,109240.0,109230.0,0.3632294]
[1752077607249,1.65311025,109240.0,109230.0,0.3632294]
[1752077609946,1.75311025,109240.0,109230.0,0.3174603]
[1752077610145,1.75311025,109240.0,109230.0,0.2558633]
[1752077610348,1.81481025,109240.0,109230.0,0.009]
[1752077610539,0.1830935,109220.0,109210.0,0.2477036]
[1752077610745,1.67613212,109220.0,109210.0,0.2477036]
[1752077611144,2.00098763,109220.0,109200.0,0.11159148]
[1752077611354,0.98398433,109210.0,109200.0,0.06513142]
[1752077611648,1.00024433,109210.0,109200.0,0.24825842]
[1752077611856,1.06204433,109210.0,109200.0,0.24825842]
[1752077612150,1.09839173,109210.0,109200.0,0.06513142]
[1752077612340,1.09839173,109210.0,109200.0,0.21635842]
[1752077613347,1.09834755,109210.0,109200.0,0.21635842]
[1752077613650,1.09834755,109210.0,109200.0,0.21935842]
[1752077613950,2.78099618,109210.0,109200.0,2e-08]
[1752077614156,2.78099618,109210.0,109190.0,0.00183159]
[1752077614157,0.1831269,109200.0,109190.0,0.00183159]
[1752077614347,2.07431332,109200.0,109190.0,0.00183159]
[1752077614540,0.1831605,109180.0,109170.0,0.3068481]
[1752077614749,1.54089463,109180.0,109170.0,0.2935543]
[1752077614957,1.50168463,109180.0,109170.0,0.3093843]
[1752077615450,1.52463463,109180.0,109170.0,0.3093843]
[1752077616045,0.88403463,109180.0,109170.0,0.3093843]
[1752077616248,0.20078745,109180.0,109170.0,0.6622843]
[1752077616448,0.84126745,109180.0,109170.0,0.97940843]
[1752077616655,0.67436695,109180.0,109170.0,1.34020843]
[1752077616843,0.65810695,109180.0,109170.0,1.34020843]
[1752077617049,0.84126735,109180.0,109170.0,1.34220843]
[1752077617352,0.85752735,109180.0,109170.0,1.34220843]
[1752077617744,0.85752735,109180.0,109170.0,1.34420843]
[1752077617945,0.85752735,109180.0,109170.0,0.98340843]
[1752077621358,0.67436695,109180.0,109170.0,0.98340843]
[1752077621760,0.85752745,109180.0,109170.0,0.98340843]
[1752077622160,0.85752745,109180.0,109170.0,0.98350843]
[1752077622161,0.85744745,109180.0,109170.0,0.98350843]
[1752077625760,0.84126745,109180.0,109170.0,0.98350843]
[1752077626151,0.67428695,109180.0,109170.0,0.98350843]
[1752077626355,0.85744745,109180.0,109170.0,0.98350843]
[1752077626763,0.67428695,109180.0,109170.0,0.98350843]
[1752077627156,0.85744745,109180.0,109170.0,0.98350843]
[1752077627662,0.92975638,109180.0,109170.0,0.98350843]
[1752077627859,0.74659588,109180.0,109170.0,0.98350843]
[1752077628055,0.74659588,109180.0,109170.0,1.34430843]
[1752077634458,0.74659588,109180.0,109170.0,1.0271843]
[1752077634655,0.74659588,109180.0,109170.0,1.34430843]
[1752077636467,0.74659588,109180.0,109170.0,1.0271843]
[1752077636674,0.74659588,109180.0,109170.0,1.34430843]
[1752077636970,0.78298348,109180.0,109170.0,1.34430843]
[1752077637165,0.74659588,109180.0,109170.0,1.34430843]
[1752077637365,0.78299698,109180.0,109170.0,1.34430843]
[1752077637865,0.35933548,109190.0,109180.0,0.1831605]
[1752077637866,0.00013758,109190.0,109180.0,0.1831605]
[1752077638063,0.00013758,109190.0,109180.0,1.27261463]
[1752077638367,0.63845758,109190.0,109180.0,1.27261463]
[1752077638567,0.63845758,109190.0,109180.0,1.29189521]
[1752077641773,0.00013758,109190.0,109180.0,1.29189521]
[1752077641973,0.63829758,109190.0,109180.0,1.29189521]
[1752077643260,0.00113758,109190.0,109180.0,1.29189521]
[1752077643672,0.63877758,109190.0,109180.0,1.29189521]
[1752077643874,0.00113758,109190.0,109180.0,1.92953521]
[1752077644572,0.00113758,109190.0,109180.0,1.29189521]
[1752077644774,0.01731758,109190.0,109180.0,0.97477108]
[1752077645074,0.01731758,109190.0,109180.0,1.29189521]
[1752077645280,0.91896177,109190.0,109180.0,0.26444108]
[1752077645474,0.98116177,109190.0,109180.0,0.26444108]
[1752077646376,0.98116177,109190.0,109180.0,0.27825108]
[1752077646564,0.98116177,109190.0,109180.0,0.21825108]
[1752077646565,1.61912177,109190.0,109180.0,0.21825108]
[1752077646766,0.30323764,109190.0,109180.0,0.84537521]
[1752077646972,0.01874334,109190.0,109180.0,0.86839521]
[1752077647174,0.65546334,109190.0,109180.0,0.90169521]
[1752077647373,0.65546334,109190.0,109180.0,1.26449521]
[1752077649181,0.65546334,109190.0,109180.0,1.2788124]
[1752077649380,0.65646334,109190.0,109180.0,1.2768124]
[1752077650076,0.69230135,109190.0,109180.0,1.2768124]
[1752077650376,0.87544565,109190.0,109180.0,1.2768124]
[1752077650681,0.70836135,109190.0,109180.0,1.30931265]
[1752077650878,0.69230135,109190.0,109180.0,1.30931265]
[1752077651375,0.70836135,109190.0,109180.0,1.30931265]
[1752077651581,0.91150565,109190.0,109180.0,0.60836852]
[1752077651873,0.99657565,109190.0,109180.0,0.61549265]
[1752077652179,0.97390565,109190.0,109180.0,0.96549265]
[1752077652667,0.97390565,109190.0,109180.0,0.98835265]
[1752077653379,0.97390565,109190.0,109180.0,0.93219265]
[1752077653569,0.99657565,109190.0,109180.0,0.93219265]
[1752077653767,0.99657565,109190.0,109180.0,0.58219265]
[1752077653972,1.67449978,109190.0,109180.0,0.24675852]
[1752077654273,1.67449978,109190.0,109180.0,0.1974796]
[1752077654675,0.51384135,109190.0,109180.0,0.86033373]
[1752077654874,0.09064135,109190.0,109180.0,0.88319373]
[1752077655070,0.72808135,109190.0,109180.0,0.94669373]
[1752077655276,0.09064135,109190.0,109180.0,0.94669373]
[1752077655476,0.71206135,109190.0,109180.0,0.94669373]
[1752077655980,0.71206135,109190.0,109180.0,1.30749373]
[1752077656677,0.71206135,109190.0,109180.0,1.30749196]
[1752077656874,0.07458135,109190.0,109180.0,1.30749196]
[1752077657077,0.03874334,109190.0,109180.0,1.30749196]
[1752077657273,0.07458663,109190.0,109180.0,1.30749196]
[1752077657983,0.03874334,109190.0,109180.0,1.30749196]
[1752077658174,0.03874334,109190.0,109180.0,1.30949196]
[1752077658370,0.0745811,109190.0,109180.0,1.94693196]
[1752077658578,0.0745811,109190.0,109180.0,1.30949196]
[1752077658978,0.0735811,109190.0,109180.0,1.30949196]
[1752077659284,0.03774334,109190.0,109180.0,1.31149196]
[1752077659680,0.03774334,109190.0,109180.0,1.29717463]
[1752077660184,0.07356411,109190.0,109180.0,1.29717463]
[1752077660376,0.03774334,109190.0,109180.0,1.29717463]
[1752077665786,0.05380334,109190.0,109180.0,1.29717463]
[1752077666188,0.25961654,109190.0,109180.0,1.19508463]
[1752077666393,0.64034067,109190.0,109180.0,0.8779605]
[1752077666582,0.11740334,109190.0,109180.0,1.21081463]
[1752077666887,0.75400334,109190.0,109180.0,1.21794463]
[1752077667086,0.69044334,109190.0,109180.0,1.27994463]
[1752077667287,0.67438334,109190.0,109180.0,1.27994463]
[1752077667688,0.69044334,109190.0,109180.0,1.27994463]
[1752077667887,0.69044334,109190.0,109180.0,1.27794463]
[1752077668288,0.69144334,109190.0,109180.0,1.27594463]
[1752077670289,0.72726622,109190.0,109180.0,1.27594463]
[1752077670585,0.71120622,109190.0,109180.0,1.27594463]
[1752077670991,0.07456622,109190.0,109180.0,1.27594463]
[1752077671191,0.71060622,109190.0,109180.0,1.27594463]
[1752077671392,0.67478334,109190.0,109180.0,1.27594463]
[1752077672295,0.67378334,109190.0,109180.0,1.27594463]
[1752077672592,0.67378334,109190.0,109180.0,1.27994463]
[1752077679092,0.03774334,109190.0,109180.0,1.27994463]
[1752077682497,0.03774334,109190.0,109180.0,1.38953291]
[1752077682698,0.0627,109210.0,109200.0,0.1831272]
[1752077682903,0.0627,109210.0,109200.0,1.21414133]
[1752077682904,0.74964514,109210.0,109200.0,1.21414133]
[1752077683100,0.93275554,109210.0,109200.0,1.19105133]
[1752077683290,0.93275554,109210.0,109200.0,0.83025133]
[1752077684503,0.74964514,109210.0,109200.0,0.83025133]
[1752077684702,0.75064514,109210.0,109200.0,0.83025133]
[1752077685002,0.75064514,109210.0,109200.0,0.83939917]
[1752077685200,0.93375554,109210.0,109200.0,0.83939917]
[1752077685401,0.93375554,109210.0,109200.0,0.83025133]
[1752077685989,0.93367554,109210.0,109200.0,0.83025133]
[1752077686400,0.95673554,109210.0,109200.0,0.83025133]
[1752077687104,0.95673554,109210.0,109200.0,0.84588133]
[1752077688301,1.27814554,109210.0,109200.0,0.1831272]
[1752077688604,1.63465967,109210.0,109200.0,0.1831272]
[1752077688799,1.73465967,109210.0,109200.0,0.1831272]
[1752077689801,0.68597554,109210.0,109200.0,0.50025133]
[1752077689997,0.32517554,109210.0,109200.0,0.82588133]
[1752077690202,0.95993554,109210.0,109200.0,0.81025133]
[1752077690397,0.95993554,109210.0,109200.0,0.82588133]
[1752077691100,0.14206514,109210.0,109200.0,0.82588133]
[1752077691297,0.95997514,109210.0,109200.0,0.82588133]
[1752077691506,0.77686514,109210.0,109200.0,1.24928133]
[1752077691901,0.75380514,109210.0,109200.0,1.25674133]
[1752077692102,0.93691514,109210.0,109200.0,1.25674133]
[1752077693412,0.75180514,109210.0,109200.0,1.25674133]
[1752077694312,0.93491504,109210.0,109200.0,1.25674133]
[1752077694614,0.93391504,109210.0,109200.0,1.25674133]
[1752077695409,0.93391504,109210.0,109200.0,1.23365133]
[1752077696313,0.93391504,109210.0,109200.0,0.9165272]
[1752077696612,0.93391504,109210.0,109200.0,1.24928133]
[1752077696805,0.93391504,109210.0,109200.0,1.23365133]
[1752077700515,0.93391504,109210.0,109200.0,1.20165133]
[1752077700714,0.95697504,109210.0,109200.0,1.20165133]
[1752077702913,0.95697504,109210.0,109200.0,0.8845272]
[1752077703118,0.95697504,109210.0,109200.0,1.20165133]
[1752077703616,0.32217504,109210.0,109200.0,1.20165133]
[1752077703817,0.95569504,109210.0,109200.0,1.20165133]
[1752077704521,0.74952514,109210.0,109200.0,1.20165133]
[1752077704720,0.74952514,109210.0,109200.0,1.22474133]
[1752077704921,0.93263504,109210.0,109200.0,1.25694133]
[1752077705121,0.74952514,109210.0,109200.0,1.25694133]
[1752077705311,0.93263434,109210.0,109200.0,1.25694133]
[1752077705820,0.93263434,109210.0,109200.0,0.9398172]
[1752077706022,0.93263434,109210.0,109200.0,1.24948133]
[1752077707318,0.93263434,109210.0,109200.0,1.23385133]
[1752077709224,0.93268388,109210.0,109200.0,1.23385133]
[1752077709616,0.91635388,109210.0,109200.0,1.23385133]
[1752077709812,0.93229388,109210.0,109200.0,1.23385133]
[1752077713128,0.86959388,109210.0,109200.0,1.25855133]
[1752077713327,0.85365388,109210.0,109200.0,1.25855133]
[1752077713529,0.86959388,109210.0,109200.0,1.25855133]
[1752077714325,0.68604468,109210.0,109200.0,1.25855133]
[1752077714520,0.86915468,109210.0,109200.0,1.25855133]
[1752077715624,0.68604468,109210.0,109200.0,1.25855133]
[1752077717331,0.86915428,109210.0,109200.0,1.25855133]
[1752077718234,0.68604468,109210.0,109200.0,1.25855133]
[1752077718733,0.86915438,109210.0,109200.0,0.9414272]
[1752077718926,0.89407438,109210.0,109200.0,1.24984133]
[1752077719127,0.92447438,109210.0,109200.0,0.92385133]
[1752077719329,0.92447438,109210.0,109200.0,1.28385133]
[1752077720334,0.95627438,109210.0,109200.0,1.28385133]
[1752077723034,0.9202497,109210.0,109200.0,1.28385133]
[1752077723235,0.95628276,109210.0,109200.0,1.28385133]
[1752077726133,0.93136276,109210.0,109200.0,1.28385133]
[1752077726834,0.05297306,109210.0,109200.0,1.62567546]
[1752077727139,0.68549306,109210.0,109200.0,1.62567546]
[1752077727738,0.05297306,109210.0,109200.0,1.62567546]
[1752077727936,0.66967306,109210.0,109200.0,1.62567546]
[1752077728639,0.66963306,109210.0,109200.0,1.62567546]
[1752077728838,0.03703306,109210.0,109200.0,1.62567546]
[1752077729038,0.00013758,109220.0,109210.0,0.1831101]
[1752077729239,0.63269758,109220.0,109210.0,1.30122423]
[1752077729439,0.66874425,109220.0,109210.0,1.32592423]
[1752077729640,0.66890425,109220.0,109210.0,1.32592423]
[1752077730541,0.66990425,109220.0,109210.0,1.32592423]
[1752077732039,0.66970425,109220.0,109210.0,1.32592423]
[1752077734043,0.66966425,109220.0,109210.0,1.32592423]
[1752077734244,0.66866425,109220.0,109210.0,1.32792423]
[1752077734744,0.66866425,109220.0,109210.0,1.32992423]
[1752077735149,0.68460425,109220.0,109210.0,1.32992423]
[1752077739445,0.68460425,109220.0,109210.0,1.0128001]
[1752077739645,0.68460425,109220.0,109210.0,1.32992423]
[1752077745852,0.66866425,109220.0,109210.0,1.28923423]
[1752077748056,0.68477425,109220.0,109210.0,1.31231423]
[1752077748650,0.93196725,109220.0,109210.0,0.9721101]
[1752077748850,0.93196725,109220.0,109210.0,1.30509376]
[1752077749152,1.27353091,109220.0,109210.0,0.1871101]
[1752077749452,1.93524457,109220.0,109210.0,0.004]
[1752077749652,1.93524457,109220.0,109210.0,0.1871098]
[1752077750052,1.93528414,109220.0,109210.0,0.1871098]
[1752077750559,1.30123682,109220.0,109210.0,0.1871098]
[1752077750750,1.93528414,109220.0,109210.0,0.1871098]
[1752077751053,1.93528417,109220.0,109210.0,0.1871098]
[1752077752958,1.61836138,109220.0,109210.0,0.1871098]
[1752077754354,1.30123685,109220.0,109210.0,0.1871098]
[1752077754660,1.61836138,109220.0,109210.0,0.1871098]
[1752077759056,1.30123685,109220.0,109210.0,0.1871098]
[1752077759256,1.61836138,109220.0,109210.0,0.1871098]
[1752077759756,1.61836138,109220.0,109210.0,0.20633665]
[1752077759962,1.30123685,109220.0,109210.0,0.20633665]
[1752077760261,1.61836138,109220.0,109210.0,0.20633665]
[1752077761552,1.58227511,109220.0,109210.0,0.20633665]
[1752077761861,1.61840303,109220.0,109210.0,0.20633665]
[1752077762561,1.59386303,109220.0,109210.0,0.20633665]
[1752077762757,1.61840303,109220.0,109210.0,0.20633665]
[1752077762956,1.61840303,109220.0,109210.0,0.02322685]
[1752077763155,0.1831094,109210.0,109200.0,0.00013758]
[1752077763457,0.1831262,109200.0,109190.0,0.3204831]
[1752077763658,1.59281865,109200.0,109190.0,0.3204831]
[1752077764763,1.27569412,109200.0,109190.0,0.3204831]
[1752077764963,1.59281865,109200.0,109190.0,0.3224831]
[1752077765860,1.59281865,109200.0,109190.0,0.3234831]
[1752077766260,1.61735865,109200.0,109190.0,0.3234831]
[1752077766761,0.48486792,109200.0,109190.0,1.00656763]
[1752077767065,1.21205412,109200.0,109190.0,1.06846763]
[1752077768265,0.632,109200.0,109190.0,1.06846763]
[1752077768466,0.73925062,109210.0,109200.0,0.1831262]
[1752077768667,0.79030069,109210.0,109200.0,0.5695662]
[1752077768863,0.74452049,109210.0,109200.0,0.91749073]
[1752077769068,1.31450049,109210.0,109200.0,0.91749073]
[1752077769756,1.29054049,109210.0,109200.0,0.91749073]
[1752077769954,1.31450049,109210.0,109200.0,0.91749073]
[1752077770156,1.31650049,109210.0,109200.0,0.91849073]
[1752077771567,1.63362502,109210.0,109200.0,0.2152262]
[1752077771759,2.15552502,109210.0,109200.0,0.001]
[1752077772369,2.2564976,109210.0,109200.0,0.001]
[1752077773273,0.183143,109190.0,109180.0,0.3062237]
[1752077773473,1.53207753,109190.0,109180.0,0.3104342]
[1752077773673,1.59307753,109190.0,109180.0,0.3104342]
[1752077774467,1.60201008,109190.0,109180.0,0.264646]
[1752077774663,0.1831597,109180.0,109170.0,0.3058476]
[1752077774868,0.91779211,109180.0,109170.0,0.2747476]
[1752077775171,0.98149211,109180.0,109170.0,0.228955]
[1752077775473,0.66436758,109180.0,109170.0,0.244295]
[1752077775672,1.21781758,109180.0,109170.0,1.00411953]
[1752077775973,0.85697758,109180.0,109170.0,1.36491953]
[1752077776170,0.87198758,109180.0,109170.0,1.36491953]
[1752077776371,0.87298758,109180.0,109170.0,1.36891953]
[1752077776876,0.87298758,109180.0,109170.0,1.37291953]
[1752077778577,0.83401758,109180.0,109170.0,1.38012953]
[1752077778777,0.84902758,109180.0,109170.0,1.38012953]
[1752077779480,0.84902758,109180.0,109170.0,1.063005]
[1752077779675,0.84902758,109180.0,109170.0,0.683005]
[1752077779881,1.56299293,109180.0,109170.0,0.2917524]
[1752077780082,1.56299293,109180.0,109170.0,0.2692024]
[1752077780376,1.58695293,109180.0,109170.0,0.1911765]
[1752077780582,1.65095293,109180.0,109170.0,0.1911765]
[1752077781173,0.9730284,109180.0,109170.0,0.87364103]
[1752077781377,0.9090284,109180.0,109170.0,0.93734103]
[1752077781581,0.9090284,109180.0,109170.0,0.6202165]
[1752077781876,1.2698284,109180.0,109170.0,0.2702165]
[1752077782582,1.2548184,109180.0,109170.0,0.2702165]
[1752077782880,0.8940184,109180.0,109170.0,0.2702165]
[1752077783080,1.2698284,109180.0,109170.0,0.2702165]
[1752077783376,0.6377084,109180.0,109170.0,0.2702165]
[1752077783567,0.68501082,109180.0,109170.0,0.96734103]
[1752077783879,0.85316052,109180.0,109170.0,0.96734103]
[1752077784178,0.86817052,109180.0,109170.0,0.96734103]
[1752077784579,0.8171197,109180.0,109170.0,0.96734103]
[1752077785080,0.64897,109180.0,109170.0,1.32814103]
[1752077785587,0.01601,109180.0,109170.0,1.66461044]
[1752077785777,0.64897,109180.0,109170.0,1.66461044]
[1752077786480,0.64897,109180.0,109170.0,1.35469591]
[1752077787076,0.8321298,109180.0,109170.0,1.35469591]
[1752077791477,0.64897,109180.0,109170.0,1.35469591]
[1752077793686,0.68497862,109180.0,109170.0,1.35469591]
[1752077793876,0.64897,109180.0,109170.0,1.35469591]
[1752077794079,0.68498078,109180.0,109170.0,1.35469591]
[1752077794278,0.86814048,109180.0,109170.0,1.35469591]
[1752077794772,0.8321297,109180.0,109170.0,1.03757138]
[1752077794975,0.8321297,109180.0,109170.0,1.35469591]
[1752077795174,0.86814254,109180.0,109170.0,1.35469591]
[1752077796187,0.86810134,109180.0,109170.0,1.35469591]
[1752077796384,0.8321297,109180.0,109170.0,1.35469591]
[1752077796884,0.68494164,109180.0,109170.0,1.35469591]
[1752077797984,0.86810134,109180.0,109170.0,1.03757138]
[1752077798284,0.86810134,109180.0,109170.0,1.35469591]
[1752077805987,0.89072134,109180.0,109170.0,1.33214591]
[1752077806186,0.95532134,109180.0,109170.0,1.30164591]
[1752077808194,0.93270134,109180.0,109170.0,0.98452138]
[1752077808394,0.93270134,109180.0,109170.0,1.30164591]
[1752077808582,0.95532134,109180.0,109170.0,1.30164591]
[1752077809291,0.93270134,109180.0,109170.0,1.30164591]
[1752077809591,0.93270134,109180.0,109170.0,1.33234591]
[1752077810695,0.93270134,109180.0,109170.0,1.01522138]
[1752077810994,0.93270134,109180.0,109170.0,1.33234591]